fUSD/lending_fUSD_20260502
["ID","MTS","AMOUNT","RATE_DAILY","PERIOD"]
[421448723,1777666232000,-135.43053428,8.676e-05,2]
[421448726,1777666232000,-500.0,8.676e-05,2]
[421448727,1777666232000,-371.62756367,8.676e-05,2]
[421448728,1777666232000,-3763.61852433,8.677e-05,2]
[421448731,1777666232000,-13478.77190865,8.677e-05,2]
[421448722,1777666232000,-364.56946572,8.676e-05,2]
[421448725,1777666232000,-505.06812682,8.676e-05,2]
[421448756,1777666232000,-12197.284576,8.677e-05,2]
[421448758,1777666232000,-1991.4070198,8.677e-05,2]
[421448832,1777666232000,-9999.99,8.777e-05,2]
[421448830,1777666232000,-499.99,8.777e-05,2]
[421448835,1777666232000,-502.86553041,8.853e-05,2]
[421448833,1777666232000,-12304.0,8.849e-05,2]
[421448831,1777666232000,-1164.47,8.777e-05,2]
[421448834,1777666232000,-99085.9482429,8.85e-05,2]
[421448828,1777666232000,-89994.24072257,8.777e-05,2]
[421448837,1777666232000,-151.0,8.874e-05,2]
[421448838,1777666232000,-3919.451305,8.876e-05,2]
[421448839,1777666232000,-3205.1521496,8.877e-05,2]
[421448840,1777666232000,-20969.76731284,8.877e-05,2]
[421448841,1777666232000,-124273.59334894,8.877e-05,2]
[421448842,1777666232000,-24585.78148199,8.877e-05,2]
[421448761,1777666232000,-1134989.79441508,8.677e-05,2]
[421448836,1777666232000,-151.0,8.874e-05,2]
[421448827,1777666232000,-136141.87387743,8.777e-05,2]
[421448829,1777666232000,-7548.79,8.777e-05,2]
[421448816,1777666232000,-150.99,8.775e-05,2]
[421448763,1777666232000,-22949.29737436,8.677e-05,2]
[421448786,1777666232000,-204.18265388,8.677e-05,2]
[421448790,1777666232000,-204.18265388,8.687e-05,2]
[421448793,1777666232000,-470.6858,8.696e-05,2]
[421448798,1777666232000,-204.18265388,8.696e-05,2]
[421448804,1777666232000,-9422.82,8.775e-05,2]
[421448825,1777666232000,-207.2677,8.777e-05,2]
[421448808,1777666232000,-24999.99,8.775e-05,2]
[421448801,1777666232000,-1000.0,8.775e-05,2]
[421448820,1777666232000,-259.892,8.775e-05,2]
[421448821,1777666232000,-3331.36895544,8.775e-05,2]
[421448824,1777666232000,-2259.5145,8.777e-05,2]
[421448812,1777666232000,-5488.07,8.775e-05,2]
[421448810,1777666232000,-999.99,8.775e-05,2]
[421448814,1777666232000,-299.99,8.775e-05,2]
[421448818,1777666232000,-2850.925,8.775e-05,2]
[421448846,1777666233000,-5535.49871986,8.877e-05,2]
[421448843,1777666233000,-1471.73737794,8.877e-05,2]
[421448844,1777666233000,-1557.27262659,8.877e-05,2]
[421448845,1777666233000,-490.46307228,8.877e-05,2]
[421448848,1777666233000,-345.19728589,8.877e-05,2]
[421448849,1777666233000,-20121.77911205,8.877e-05,2]
[421448850,1777666233000,-1564.62421589,8.677e-05,2]
[421448847,1777666233000,-1898.12028,8.877e-05,2]
[421448851,1777666233000,-354.35040988,8.677e-05,2]
[421448864,1777666238000,-2500.0,8.577e-05,2]
[421448871,1777666238000,-20832.00093435,8.877e-05,2]
[421448870,1777666238000,-1223.64219808,8.877e-05,2]
[421448868,1777666238000,-829.67010334,8.877e-05,2]
[421448869,1777666238000,-380.52932165,8.877e-05,2]
[421448867,1777666238000,-48993.48432967,8.877e-05,2]
[421448865,1777666238000,-497.78258363,8.677e-05,2]
[421448866,1777666238000,-33592.74333018,8.877e-05,2]
[421448887,1777666240000,-2500.0,9.527e-05,2]
[421448884,1777666240000,-2500.0,9.511e-05,2]
[421448895,1777666240000,-255.0,9.543e-05,2]
[421448893,1777666240000,-2500.0,9.543e-05,2]
[421448886,1777666240000,-250.0,9.527e-05,2]
[421448889,1777666240000,-250.0,9.527e-05,2]
[421448890,1777666240000,-267.43319798,9.527e-05,2]
[421448896,1777666240000,-1953.45585475,9.652e-05,2]
[421448888,1777666240000,-300.0,9.527e-05,2]
[421448885,1777666240000,-474.11762777,9.523e-05,2]
[421448877,1777666240000,-256.0,9.189e-05,2]
[421448882,1777666240000,-240.90463664,9.511e-05,2]
[421448883,1777666240000,-250.0,9.511e-05,2]
[421448881,1777666240000,-2500.0,9.511e-05,2]
[421448876,1777666240000,-57909.23014234,9.015e-05,2]
[421448875,1777666240000,-151.0,8.877e-05,2]
[421448878,1777666240000,-2000.0,9.275e-05,2]
[421448879,1777666240000,-2500.0,9.459e-05,2]
[421448874,1777666240000,-151.0,8.877e-05,2]
[421448873,1777666240000,-80184.4164204,8.877e-05,2]
[421448872,1777666240000,-45593.99013735,8.877e-05,2]
[421448880,1777666240000,-151.0,9.459e-05,2]
[421448894,1777666240000,-5000.0,9.543e-05,2]
[421448892,1777666240000,-1680.0,9.542e-05,2]
[421448897,1777666240000,-15674.9,9.67e-05,2]
[421448891,1777666240000,-420.0,9.542e-05,2]
[421448917,1777666240000,-500.0,0.0001,2]
[421448913,1777666240000,-500.0,0.0001,2]
[421448918,1777666240000,-151.0,0.0001,2]
[421448916,1777666240000,-151.0,0.0001,2]
[421448914,1777666240000,-151.0,0.0001,2]
[421448912,1777666240000,-151.0,0.0001,2]
[421448910,1777666240000,-151.0,0.0001,2]
[421448919,1777666240000,-500.0,0.0001,2]
[421448911,1777666240000,-500.0,0.0001,2]
[421448904,1777666240000,-151.0,0.0001,2]
[421448915,1777666240000,-500.0,0.0001,2]
[421448903,1777666240000,-151.0,0.0001,2]
[421448906,1777666240000,-151.0,0.0001,2]
[421448908,1777666240000,-151.0,0.0001,2]
[421448909,1777666240000,-500.0,0.0001,2]
[421448905,1777666240000,-500.0,0.0001,2]
[421448902,1777666240000,-347.07517102,0.0001,2]
[421448899,1777666240000,-743.04811166,0.0001,2]
[421448900,1777666240000,-540.01206028,0.0001,2]
[421448898,1777666240000,-166.66,9.935e-05,2]
[421448907,1777666240000,-500.0,0.0001,2]
[421448901,1777666240000,-205.11746668,0.0001,2]
[421448963,1777666241000,-150.0,0.000108,2]
[421448957,1777666241000,-300.0,0.00010498,2]
[421448955,1777666241000,-173.22,0.00010411,2]
[421448954,1777666241000,-2000.0,0.00010305,2]
[421448958,1777666241000,-160.51,0.000105,2]
[421448953,1777666241000,-186.97,0.00010274,2]
[421448960,1777666241000,-349.34062511,0.00010782,2]
[421448959,1777666241000,-164.07,0.00010561,2]
[421448961,1777666241000,-150.0,0.000108,2]
[421448962,1777666241000,-150.0,0.000108,2]
[421448956,1777666241000,-2351.0,0.00010496,2]
[421448964,1777666241000,-150.0,0.000108,2]
[421448973,1777666241000,-207.56351682,0.0001088,2]
[421448971,1777666241000,-2000.0,0.00010802,2]
[421448970,1777666241000,-150.0,0.000108,2]
[421448972,1777666241000,-150.0,0.0001085,2]
[421448968,1777666241000,-150.0,0.000108,2]
[421448966,1777666241000,-150.0,0.000108,2]
[421448965,1777666241000,-150.0,0.000108,2]
[421448969,1777666241000,-150.0,0.000108,2]
[421448974,1777666241000,-160.0,0.0001088,2]
[421448984,1777666241000,-150.0,0.00010959,2]
[421448975,1777666241000,-162.38278084,0.0001088,2]
[421448951,1777666241000,-1344.0,0.00010123,2]
[421448976,1777666241000,-160.0,0.0001088,2]
[421448982,1777666241000,-150.0,0.00010933,2]
[421448967,1777666241000,-261.26925773,0.000108,2]
[421448950,1777666241000,-151.0,0.0001,2]
[421448939,1777666241000,-500.0,0.0001,2]
[421448949,1777666241000,-151.0,0.0001,2]
[421448979,1777666241000,-13105.8591025,0.000109,2]
[421448920,1777666241000,-151.0,0.0001,2]
[421448921,1777666241000,-500.0,0.0001,2]
[421448923,1777666241000,-438.70818035,0.0001,2]
[421448924,1777666241000,-151.0,0.0001,2]
[421448925,1777666241000,-151.0,0.0001,2]
[421448931,1777666241000,-500.0,0.0001,2]
[421448926,1777666241000,-151.0,0.0001,2]
[421448932,1777666241000,-151.0,0.0001,2]
[421448922,1777666241000,-151.0,0.0001,2]
[421448934,1777666241000,-151.0,0.0001,2]
[421448933,1777666241000,-500.0,0.0001,2]
[421448929,1777666241000,-500.0,0.0001,2]
[421448930,1777666241000,-151.0,0.0001,2]
[421448928,1777666241000,-151.0,0.0001,2]
[421448936,1777666241000,-151.0,0.0001,2]
[421448935,1777666241000,-500.0,0.0001,2]
[421448946,1777666241000,-151.0,0.0001,2]
[421448937,1777666241000,-876.39268058,0.0001,2]
[421448943,1777666241000,-151.0,0.0001,2]
[421448941,1777666241000,-500.0,0.0001,2]
[421448940,1777666241000,-151.0,0.0001,2]
[421448945,1777666241000,-500.0,0.0001,2]
[421448947,1777666241000,-151.0,0.0001,2]
[421448944,1777666241000,-500.0,0.0001,2]
[421448948,1777666241000,-151.0,0.0001,2]
[421448942,1777666241000,-151.0,0.0001,2]
[421448952,1777666241000,-256.0,0.0001021,2]
[421448980,1777666241000,-150.0,0.0001092,2]
[421448927,1777666241000,-500.0,0.0001,2]
[421448977,1777666241000,-150.0,0.000109,2]
[421449013,1777666241000,-150.0,0.000111,2]
[421449017,1777666241000,-150.0,0.000112,2]
[421449014,1777666241000,-150.0,0.0001115,2]
[421449016,1777666241000,-150.0,0.0001116,2]
[421449019,1777666241000,-207.48,0.0001122,2]
[421449020,1777666241000,-256.0,0.00011231,2]
[421449022,1777666241000,-150.0,0.0001128,2]
[421449021,1777666241000,-150.0,0.0001125,2]
[421449025,1777666241000,-150.0,0.00011333,2]
[421449024,1777666241000,-150.0,0.000113,2]
[421449027,1777666241000,-150.0,0.0001135,2]
[421449030,1777666241000,-150.0,0.000114,2]
[421449023,1777666241000,-150.0,0.0001128,2]
[421449026,1777666241000,-2000.0,0.00011336,2]
[421449031,1777666241000,-150.0,0.000114,2]
[421449029,1777666241000,-150.0,0.000114,2]
[421449028,1777666241000,-1344.0,0.00011388,2]
[421449033,1777666241000,-150.0,0.0001145,2]
[421449032,1777666241000,-150.0,0.000114,2]
[421449035,1777666241000,-150.0,0.000115,2]
[421449040,1777666241000,-150.0,0.0001155,2]
[421449036,1777666241000,-837.78,0.00011507,2]
[421449037,1777666241000,-150.0,0.0001152,2]
[421449034,1777666241000,-150.0,0.00011467,2]
[421449038,1777666241000,-150.0,0.0001152,2]
[421449039,1777666241000,-1458.0,0.00011546,2]
[421448981,1777666241000,-150.0,0.0001092,2]
[421449015,1777666241000,-150.0,0.0001116,2]
[421449012,1777666241000,-150.0,0.000111,2]
[421449018,1777666241000,-150.0,0.000112,2]
[421449011,1777666241000,-3083.26458776,0.00011099,2]
[421448983,1777666241000,-150.0,0.0001095,2]
[421448978,1777666241000,-2300.0,0.000109,3]
[421448986,1777666241000,-151.0,0.00010959,2]
[421448989,1777666241000,-151.0,0.00010959,2]
[421448985,1777666241000,-150.0,0.00010959,2]
[421448994,1777666241000,-264.59,0.00010989,2]
[421448995,1777666241000,-150.0,0.00010989,2]
[421448996,1777666241000,-156.34,0.00010989,2]
[421449010,1777666241000,-3083.26458783,0.00011099,2]
[421448987,1777666241000,-151.0,0.00010959,2]
[421448993,1777666241000,-294.89,0.00010989,2]
[421448992,1777666241000,-500.0,0.00010973,2]
[421448988,1777666241000,-151.0,0.00010959,2]
[421448991,1777666241000,-500.0,0.00010973,2]
[421448990,1777666241000,-503.11588169,0.00010973,2]
[421449008,1777666241000,-150.0,0.0001105,2]
[421448998,1777666241000,-20253.86,0.00011,2]
[421449004,1777666241000,-581.08,0.00011,2]
[421449007,1777666241000,-150.0,0.0001104,2]
[421449006,1777666241000,-150.0,0.0001104,2]
[421449000,1777666241000,-20253.86,0.00011,2]
[421449009,1777666241000,-150.0,0.00011067,2]
[421449001,1777666241000,-4079.11,0.00011,2]
[421449005,1777666241000,-150.0,0.00011,2]
[421449002,1777666241000,-4079.11,0.00011,2]
[421449003,1777666241000,-4079.11,0.00011,2]
[421448997,1777666241000,-151.0,0.00010997,2]
[421448999,1777666241000,-20253.86,0.00011,2]
[421449054,1777666242000,-150.0,0.000118,2]
[421449053,1777666242000,-150.0,0.0001176,2]
[421449049,1777666242000,-150.0,0.000117,2]
[421449052,1777666242000,-150.0,0.0001176,2]
[421449047,1777666242000,-150.0,0.0001165,2]
[421449045,1777666242000,-150.0,0.0001164,2]
[421449046,1777666242000,-150.0,0.0001164,2]
[421449042,1777666242000,-166.66,0.00011575,2]
[421449043,1777666242000,-150.0,0.000116,2]
[421449050,1777666242000,-150.0,0.00011733,2]
[421449044,1777666242000,-150.0,0.000116,2]
[421449051,1777666242000,-150.0,0.0001175,2]
[421449041,1777666242000,-3083.26458776,0.00011575,2]
[421449055,1777666242000,-150.0,0.0001185,2]
[421449066,1777666242000,-224.01888329,0.00011997,2]
[421449060,1777666242000,-150.0,0.000119,2]
[421449067,1777666242000,-1272309.53250114,0.00012,2]
[421449063,1777666242000,-934.30096908,0.000119,2]
[421449062,1777666242000,-10863.50841394,0.000119,2]
[421449061,1777666242000,-2900.0,0.000119,4]
[421449048,1777666242000,-150.0,0.000117,2]
[421449057,1777666242000,-10000.0,0.0001188,2]
[421449065,1777666242000,-150.0,0.0001195,2]
[421449058,1777666242000,-150.0,0.0001188,2]
[421449056,1777666242000,-150.0,0.00011867,2]
[421449064,1777666242000,-181.78966105,0.000119,2]
[421449059,1777666242000,-150.0,0.0001188,2]
[421449089,1777666244000,-1851.7778349,0.000119,2]
[421449090,1777666244000,-2721.76585246,0.00012,2]
[421449097,1777666246000,-5529.0,0.00012,2]
[421449098,1777666246000,-3095.1163135,0.00012,2]
[421449104,1777666396000,-204.58057033,8.405e-05,2]
[421449105,1777666527000,-2076.15942967,8.405e-05,2]
[421449106,1777666527000,-37.23057033,8.405e-05,2]
[421449107,1777666528000,-170.68342967,8.405e-05,2]
[421449108,1777666531000,-257.3711965,8.405e-05,2]
[421449109,1777666532000,6504.0,0.00030137,120]
[421449111,1777666537000,158.86,7.538e-05,2]
[421449110,1777666537000,158.86,6.462e-05,2]
[421449131,1777666601000,-150.0,8.576e-05,2]
[421449115,1777666601000,-500.0,8.576e-05,2]
[421449113,1777666601000,-2500.0,8.558e-05,2]
[421449114,1777666601000,-223.79484196,8.576e-05,2]
[421449116,1777666601000,-262.17056648,8.576e-05,2]
[421449118,1777666601000,-500.0,8.576e-05,2]
[421449119,1777666601000,-500.0,8.576e-05,2]
[421449117,1777666601000,-500.0,8.576e-05,2]
[421449120,1777666601000,-253.54768877,8.576e-05,2]
[421449121,1777666601000,-500.0,8.576e-05,2]
[421449123,1777666601000,-500.0,8.576e-05,2]
[421449124,1777666601000,-500.0,8.576e-05,2]
[421449125,1777666601000,-500.0,8.576e-05,2]
[421449126,1777666601000,-500.0,8.576e-05,2]
[421449127,1777666601000,-500.0,8.576e-05,2]
[421449128,1777666601000,-236.1791097,8.576e-05,2]
[421449129,1777666601000,-500.0,8.576e-05,2]
[421449112,1777666601000,-257.3711965,8.541e-05,2]
[421449132,1777666601000,-57498.81135528,8.577e-05,2]
[421449122,1777666601000,-500.0,8.576e-05,2]
[421449130,1777666601000,-618.12524131,8.576e-05,2]
[421449133,1777666646000,977.04,0.00029899,120]
[421449136,1777666910000,-1824.592,8.405e-05,2]
[421449137,1777666993000,-166.331,8.405e-05,2]
[421449138,1777667081000,-328.0434,8.476e-05,2]
[421449140,1777667143000,-443.76975069,8.575e-05,2]
[421449139,1777667143000,-150.0,8.575e-05,2]
[421449142,1777667224000,164.57,5.793e-05,2]
[421449141,1777667224000,164.57,4.634e-05,2]
[421449144,1777667238000,164.57,6.951e-05,2]
[421449143,1777667238000,-57.3349,8.476e-05,2]
[421449145,1777667251000,164.57,8.11e-05,2]
[421449149,1777667307000,-57.33610477,8.575e-05,2]
[421449148,1777667307000,-329.14,8.476e-05,2]
[421449151,1777667357000,-2500.0,8.575e-05,2]
[421449152,1777667357000,-500.0,8.576e-05,2]
[421449150,1777667357000,-698.89414454,8.575e-05,2]
[421449153,1777667357000,-500.0,8.576e-05,2]
[421449155,1777667357000,-500.0,8.576e-05,2]
[421449154,1777667357000,-565.32537679,8.576e-05,2]
[421449156,1777667357000,-500.0,8.576e-05,2]
[421449157,1777667357000,-323.83673267,8.576e-05,2]
[421449189,1777667431000,-17191.7766602,9.228e-05,2]
[421449187,1777667431000,-9999.99,9.049e-05,2]
[421449181,1777667431000,-375.95131012,8.596e-05,2]
[421449182,1777667431000,-375.95131012,8.615e-05,2]
[421449178,1777667431000,-2500.0,8.588e-05,2]
[421449174,1777667431000,-2500.0,8.576e-05,2]
[421449179,1777667431000,-2500.0,8.588e-05,2]
[421449180,1777667431000,-2500.0,8.588e-05,2]
[421449176,1777667431000,-15654.5109,8.577e-05,2]
[421449177,1777667431000,-472383.9847,8.577e-05,2]
[421449185,1777667431000,-256.0,9.049e-05,2]
[421449175,1777667431000,-375.95131012,8.576e-05,2]
[421449167,1777667431000,-283.69106108,8.576e-05,2]
[421449173,1777667431000,-156.65638937,8.576e-05,2]
[421449172,1777667431000,-500.0,8.576e-05,2]
[421449168,1777667431000,-500.0,8.576e-05,2]
[421449170,1777667431000,-500.0,8.576e-05,2]
[421449169,1777667431000,-159.73587359,8.576e-05,2]
[421449166,1777667431000,-500.0,8.576e-05,2]
[421449164,1777667431000,-176.16326733,8.576e-05,2]
[421449165,1777667431000,-440.4103888,8.576e-05,2]
[421449163,1777667431000,-388.61624862,8.575e-05,2]
[421449162,1777667431000,-811.38375138,8.575e-05,2]
[421449194,1777667431000,-75618.9119829,9.249e-05,2]
[421449171,1777667431000,-461.28044106,8.576e-05,2]
[421449192,1777667431000,-299.99,9.228e-05,2]
[421449183,1777667431000,-158.86,8.615e-05,2]
[421449207,1777667431000,-411.43680021,9.513e-05,2]
[421449196,1777667431000,-159.5751294,9.255e-05,2]
[421449250,1777667431000,-173.22,0.00010411,2]
[421449248,1777667431000,-249.73,0.00010369,2]
[421449246,1777667431000,-500.0,0.00010267,2]
[421449252,1777667431000,-2000.0,0.00010815,2]
[421449244,1777667431000,-327.91,0.00010216,2]
[421449239,1777667431000,-151.0,0.0001,2]
[421449237,1777667431000,-151.0,0.0001,2]
[421449235,1777667431000,-151.0,0.0001,2]
[421449233,1777667431000,-151.0,0.0001,2]
[421449231,1777667431000,-151.0,0.0001,2]
[421449221,1777667431000,-151.0,0.0001,2]
[421449219,1777667431000,-151.0,0.0001,2]
[421449241,1777667431000,-22725.39816583,0.0001,2]
[421449228,1777667431000,-151.0,0.0001,2]
[421449198,1777667431000,-150.99,9.255e-05,2]
[421449217,1777667431000,-151.0,0.0001,2]
[421449200,1777667431000,-164.57,9.268e-05,2]
[421449209,1777667431000,-66221.2811486,9.533e-05,2]
[421449205,1777667431000,-2500.0,9.433e-05,2]
[421449254,1777667431000,-207.56351682,0.00010876,2]
[421449202,1777667431000,-300.0,9.323e-05,2]
[421449213,1777667431000,-5547.07,9.768e-05,2]
[421449215,1777667431000,-1000.0,9.822e-05,2]
[421449224,1777667431000,-151.0,0.0001,2]
[421449226,1777667431000,-151.0,0.0001,2]
[421449211,1777667431000,-228.68,9.647e-05,2]
[421449274,1777667432000,-250.0,0.00011901,2]
[421449256,1777667432000,-162.38278084,0.00010876,2]
[421449259,1777667432000,-200.0,0.00010882,2]
[421449261,1777667432000,-2925.77574633,0.00011,2]
[421449265,1777667432000,-150.0,0.00011496,2]
[421449269,1777667432000,-3072.76,0.0001182,2]
[421449272,1777667432000,-584.26178704,0.000119,2]
[421449267,1777667432000,-260.77,0.00011572,2]
[421449278,1777667432000,-200.0,0.00011904,2]
[421449276,1777667432000,-400.0,0.00011901,2]
[421449280,1777667432000,-2000.0,0.0001192,2]
[421449263,1777667432000,-2158.28521145,0.00011099,2]
[421449282,1777667432000,-2158.28521143,0.00011968,2]
[421449302,1777667432000,-65723.23518098,0.00012,2]
[421449304,1777667432000,-5841.71037528,0.00012,2]
[421449307,1777667432000,-671.18141117,0.00012,2]
[421449311,1777667432000,-2448.0892418,0.00012,2]
[421449300,1777667432000,-2000.0,0.00012,2]
[421449284,1777667432000,-2000.0,0.0001197,2]
[421449293,1777667432000,-225.42,0.00012,2]
[421449295,1777667432000,-151.0,0.00012,2]
[421449291,1777667432000,-398715.96045599,0.00012,2]
[421449287,1777667432000,-1548.8,0.00011975,2]
[421449289,1777667432000,-250.0,0.00011975,2]
[421449297,1777667432000,-2000.0,0.00012,2]
[421449325,1777667437000,-7756.7354226,0.00012,2]
[421449327,1777667437000,-48993.48432967,0.00012,2]
[421449326,1777667437000,-36590.52591381,0.00012,2]
[421449329,1777667437000,-380.52932165,0.00012,2]
[421449328,1777667437000,-829.67010334,0.00012,2]
[421449339,1777667438000,-1673.76945441,0.00012,2]
[421449337,1777667438000,-5885.9865346,0.00012,2]
[421449338,1777667438000,-512.70374086,0.00012,2]
[421449336,1777667438000,-982.39744451,0.00012,2]
[421449334,1777667438000,-19602.08057351,0.00012,2]
[421449335,1777667438000,-336.51965632,0.00012,2]
[421449340,1777667438000,-715.72624113,0.00012,2]
[421449346,1777667440000,-30967.74154793,0.00012,2]
[421449347,1777667440000,-1045.19488352,0.00012,2]
[421449345,1777667440000,-146299.35535629,0.00012,2]
[421449364,1777667445000,-1271.00044076,0.00012,2]
[421449363,1777667445000,-1506.46764911,0.00012,2]
[421449365,1777667446000,-1508.949995,0.00012,2]
[421449389,1777667568000,936.33,0.00029699,120]
[421449393,1777667964000,180.24,5.427e-05,2]
[421449394,1777667965000,180.24,7.235e-05,2]
[421449406,1777668558000,-121.6098,9.496e-05,2]
[421449405,1777668558000,-180.24,9.044e-05,2]
[421449418,1777668631000,-1600.0,0.000107,2]
[421449419,1777668631000,-1000.0,0.00010704,2]
[421449429,1777668631000,-160.0,0.00010908,2]
[421449425,1777668631000,-150.0,0.000108,2]
[421449420,1777668631000,-150.0,0.000108,2]
[421449416,1777668631000,-553.71320465,0.00010446,2]
[421449427,1777668631000,-173.22,0.00010896,2]
[421449426,1777668631000,-180.24,0.00010853,2]
[421449417,1777668631000,-2000.0,0.00010559,2]
[421449424,1777668631000,-150.0,0.000108,2]
[421449421,1777668631000,-150.00000001,0.000108,2]
[421449422,1777668631000,-150.0,0.000108,2]
[421449414,1777668631000,-300.0,9.949e-05,2]
[421449415,1777668631000,-250.0,9.949e-05,2]
[421449413,1777668631000,-300.0,9.949e-05,2]
[421449412,1777668631000,-193.0,9.949e-05,2]
[421449411,1777668631000,-2003.14593727,9.949e-05,2]
[421449410,1777668631000,-247.00121624,9.949e-05,2]
[421449408,1777668631000,-128.3902,9.496e-05,2]
[421449409,1777668631000,-300.0,9.949e-05,2]
[421449423,1777668631000,-150.0,0.000108,2]
[421449428,1777668631000,-160.0,0.00010907,2]
[421449437,1777668631000,-9552.16786547,0.00011396,2]
[421449432,1777668631000,-200.0,0.00011218,2]
[421449430,1777668631000,-500.0,0.0001092,2]
[421449453,1777668631000,-750.63224194,0.00011561,2]
[421449451,1777668631000,-9905.5980765,0.00011451,2]
[421449450,1777668631000,-9999.99,0.00011403,2]
[421449452,1777668631000,-10272.10520533,0.00011506,2]
[421449449,1777668631000,-9999.99,0.00011403,2]
[421449444,1777668631000,-150.0,0.000114,2]
[421449443,1777668631000,-150.0,0.000114,2]
[421449442,1777668631000,-150.0,0.000114,2]
[421449447,1777668631000,-299.99,0.00011403,2]
[421449448,1777668631000,-150.99,0.00011403,2]
[421449441,1777668631000,-150.0,0.000114,2]
[421449445,1777668631000,-150.0,0.00011401,2]
[421449440,1777668631000,-1852.42,0.00011397,2]
[421449439,1777668631000,-174.61919141,0.00011396,2]
[421449438,1777668631000,-151.0,0.00011396,2]
[421449436,1777668631000,-207.56351682,0.00011323,2]
[421449435,1777668631000,-209.40437684,0.000113,2]
[421449434,1777668631000,-578.20924308,0.000113,2]
[421449433,1777668631000,-162.38278084,0.00011257,2]
[421449446,1777668631000,-2190.85,0.00011403,2]
[421449431,1777668631000,-150.0,0.00010959,2]
[421449466,1777668632000,-500.0,0.00011793,2]
[421449463,1777668632000,-151.0,0.00011793,2]
[421449468,1777668632000,-500.0,0.00011793,2]
[421449483,1777668632000,-879.83382631,0.000118,2]
[421449473,1777668632000,-151.0,0.00011793,2]
[421449472,1777668632000,-561.29181965,0.00011793,2]
[421449482,1777668632000,-380.39364218,0.00011793,2]
[421449484,1777668632000,-2994.96100583,0.000118,2]
[421449474,1777668632000,-151.0,0.00011793,2]
[421449465,1777668632000,-151.0,0.00011793,2]
[421449481,1777668632000,-151.0,0.00011793,2]
[421449467,1777668632000,-151.0,0.00011793,2]
[421449455,1777668632000,-500.0,0.000116,2]
[421449462,1777668632000,-151.0,0.00011793,2]
[421449464,1777668632000,-500.0,0.00011793,2]
[421449471,1777668632000,-151.0,0.00011793,2]
[421449461,1777668632000,-721.12765534,0.00011793,2]
[421449459,1777668632000,-3753.7622,0.00011748,2]
[421449460,1777668632000,-1428.38747117,0.00011793,2]
[421449470,1777668632000,-500.0,0.00011793,2]
[421449456,1777668632000,-166.66,0.00011683,2]
[421449458,1777668632000,-302.0,0.0001173,2]
[421449478,1777668632000,-151.0,0.00011793,2]
[421449457,1777668632000,-1300.0,0.000117,4]
[421449454,1777668632000,-600.0,0.000116,4]
[421449469,1777668632000,-151.0,0.00011793,2]
[421449477,1777668632000,-151.0,0.00011793,2]
[421449492,1777668632000,-5000.0,0.000118,2]
[421449476,1777668632000,-151.0,0.00011793,2]
[421449506,1777668632000,-645.95898191,0.00011899,2]
[421449504,1777668632000,-500.0,0.00011899,2]
[421449503,1777668632000,-487.89667582,0.00011899,2]
[421449501,1777668632000,-972.32333,0.0001189,2]
[421449507,1777668632000,-396756.85063943,0.000119,2]
[421449502,1777668632000,-250.0,0.00011899,2]
[421449505,1777668632000,-500.0,0.00011899,2]
[421449500,1777668632000,-546.69121781,0.00011889,2]
[421449499,1777668632000,-500.0,0.00011889,2]
[421449498,1777668632000,-500.0,0.00011889,2]
[421449475,1777668632000,-151.0,0.00011793,2]
[421449497,1777668632000,-972.32332,0.0001188,2]
[421449508,1777668632000,-994.3940699,0.000119,2]